[Event "German Bundesliga 2021-22"]
[Site "Germany"]
[Date "2022.05.01"]
[Round "6.4"]
[White "Neiksans, Arturs"]
[Black "Berelowitsch, Alexander"]
[Result "1-0"]
[ECO "A90"]
[WhiteElo "2577"]
[BlackElo "2504"]
[Annotator "TA"]
[PlyCount "85"]
[EventDate "2022.03.05"]
[EventType "team-tourn"]
[EventCountry "GER"]
[SourceTitle "playchess.com"]
[Source "ChessBase"]
[SourceQuality "1"]
[TimeControl "40/5400+30:1800+30"]

{[%evp 15,85,43,62,47,44,58,52,41,51,48,37,46,47,45,45,24,26,16,12,12,12,19,8,0,2,6,11,9,5,6,6,8,8,4,8,0,0,0,14,5,80,2,2,5,14,4,18,7,7,2,2,0,22,28,21,15,15,26,17,23,68,68,68,68,422,416,308,382,592,591,616,579]} 1. d4 {[%emt 0:00:00]} e6 {[%emt 0:00:00]} 2. c4 {[%emt 0:00:00]} f5 {[%emt 0:00:00]} 3. g3 {[%emt 0:00:00]} Nf6 {[%emt 0:00:00]} 4. Bg2 {[%emt 0:00:00]} Bb4+ {[%emt 0:01:54]} 5. Nd2 {[%emt 0:00:00]} O-O {[%emt 0:00:18]} 6. Ngf3 {[%emt 0:00:00]} d6 {[%emt 0:06:38]} 7. O-O {[%emt 0:00:00]} Bxd2 {[%emt 0:00:03]} 8. Qxd2 {[%emt 0:00:00]} Qe7 {[%emt 0:00:39]} 9. b3 {[%emt 0:01:15] A90: Dutch Defence: Miscellaneous and Modern Stonewall (with ...Bd6).} e5 {[%emt 0:02:23]} 10. dxe5 {[%emt 0:22:27]} dxe5 {[%emt 0:00:47]} 11. Bb2 {[%emt 0:00:06] White is slightly better.} Nc6 {[%emt 0:00:40][%cal Bb8c6,Bc6d4,Bd4e2][%mdl 32]} 12. Qc3 {[%emt 0:01:13][%cal Rf3e5]} Re8 {[%emt 0:03:09]} 13. Rad1 {[%emt 0:08:03]} a5 {[%emt 0:03:59] [#]} 14. Ne1 $146 {[%emt 0:10:03]} ({Predecessor:} 14. a3 Bd7 15. Rfe1 Kh8 16. Nd2 e4 17. Nf1 Be6 18. Ne3 Rad8 19. c5 Nd5 20. Nxd5 Bxd5 {½-½ (35) Michiels,B (2533)-Alienkin,A (2394) Belgium 2015}) 14... Nd4 {[%emt 0:21:22]} 15. Kh1 {[%emt 0:02:23]} (15. Rd2 $5 {[%cal Re1d3]}) 15... Nxe2 {[%emt 0:04:47]} 16. Qd2 {[%emt 0:03:58]} Nd4 {[%emt 0:01:56]} 17. Bxd4 {[%emt 0:00:22]} exd4 {[%emt 0:00:29]} 18. Qxd4 {[%emt 0:00:05]} Ra6 {[%emt 0:07:14]} 19. Nc2 {[%emt 0:17:54]} Rd6 {[%emt 0:15:44]} 20. Qf4 {[%emt 0:02:08]} Rxd1 {[%emt 0:08:37]} 21. Rxd1 {[%emt 0:00:13]} Qe5 {[%emt 0:00:25]} 22. Qxe5 {[%emt 0:11:48]} Rxe5 {[%emt 0:00:13]} 23. f4 {[%emt 0:00:11]} Re8 {[%emt 0:04:25]} 24. Bf3 {[%emt 0:00:41]} Kf7 {[%emt 0:02:01]} 25. Kg1 {[%emt 0:00:59]} h6 {[%emt 0:02:05]} 26. h4 {[%emt 0:09:29]} Bd7 {[%emt 0:03:21]} 27. Kf2 {[%emt 0:02:55]} a4 {[%emt 0:07:11]} (27... b6 $11) 28. Ne3 {[%emt 0:01:55]} (28. Bxb7 $16 {With the idea b4.} axb3 29. axb3) 28... axb3 $11 {[%emt 0:02:25]} 29. axb3 {[%emt 0:00:03]} b6 {[%emt 0:00:36]} 30. Ra1 {[%emt 0:02:49]} Ke7 {[%emt 0:00:20]} 31. Ke2 {[%emt 0:01:15]} Kd6 {[%emt 0:00:38]} 32. Kd3 {[%emt 0:00:04]} g6 {[%emt 0:00:12][%cal Bg7g6,Bg6g5][%mdl 32]} 33. Rd1 {[%emt 0:02:03]} Rg8 {[%emt 0:00:01]} 34. Kc3+ {[%emt 0:00:21]} (34. b4 {keeps more tension.} g5 35. c5+ bxc5 36. Kc4+) 34... Ke7 {[%emt 0:00:01]} 35. Re1 {[%emt 0:00:26] [#] aiming for Nd5+.} Kd8 {[%emt 0:02:31]} 36. Ra1 {[%emt 0:00:35]} Ke7 {[%emt 0:00:02]} 37. Ra7 {[%emt 0:00:26]} g5 {[%emt 0:01:17]} 38. Nd5+ {[%emt 0:00:47]} ({Don't play} 38. Rxc7 $6 gxf4 39. gxf4 Kd8 40. Rxd7+ Nxd7 $11) 38... Nxd5+ {[%emt 0:00:27]} 39. Bxd5 {[%emt 0:00:04]} ({Don't go for} 39. cxd5 $2 gxf4 40. Kd4 fxg3 $19) 39... Rg7 {[%emt 0:00:32][%mdl 8192] [#] This move loses the game for Black.} (39... Rc8 $1 $14) 40. Rxc7 $18 {[%emt 0:01:15]} gxf4 {[%emt 0:00:35]} 41. gxf4 {[%emt 0:30:15]} Rg4 {[%emt 0:00:00]} (41... Rg3+ $142 42. Kb4 Rg4) 42. Rb7 {[%emt 0:00:00]} Kd8 {[%emt 0:05:32]} 43. Kd4 {[%emt 0:00:00] Weighted Error Value: White=0.06 (flawless) /Black=0.32} 1-0

[Event "German Bundesliga 2021-22"]
[Site "Germany"]
[Date "2022.05.01"]
[Round "6.4"]
[White "Ernst, Sipke"]
[Black "Tari, Aryan"]
[Result "0-1"]
[ECO "E46"]
[WhiteElo "2532"]
[BlackElo "2650"]
[Annotator "TA"]
[PlyCount "92"]
[EventDate "2022.03.05"]
[EventType "team-tourn"]
[EventCountry "GER"]
[SourceTitle "playchess.com"]
[Source "ChessBase"]
[SourceQuality "1"]
[TimeControl "40/5400+30:1800+30"]

{[%evp 15,91,-3,0,0,0,0,0,0,6,3,27,8,15,0,0,0,4,6,5,-43,-41,-90,-72,-81,-78,-87,-93,-74,-83,-89,-136,-90,-88,-75,-81,-77,-93,-87,-93,-88,-87,-94,-83,-118,-114,-110,-110,-134,-55,-55,-55,-55,-55,-56,-56,-87,-33,-33,-33,-189,0,-108,-90,-108,-108,-146,0,0,0,-131,-117,-287,-202,-880,-584,-1470,-1355,-29999]} 1. d4 {[%emt 0:00:00]} Nf6 {[%emt 0:00:00]} 2. c4 {[%emt 0:00:00]} e6 {[%emt 0:00:00]} 3. Nc3 {[%emt 0:00:00]} Bb4 {[%emt 0:00:00]} 4. e3 {[%emt 0:00:00]} O-O {[%emt 0:00:00]} 5. Bd2 {[%emt 0:00:00]} c5 {[%emt 0:00:00]} 6. Nf3 {[%emt 0:00:00]} cxd4 {[%emt 0:00:00]} 7. Nxd4 {[%emt 0:00:00]} Nc6 {[%emt 0:02:08]} 8. a3 {[%emt 0:00:33] is cutting edge theory.} Be7 {[%emt 0:03:28]} 9. Be2 {[%emt 0:13:47] A32: Symmetrical English: 2 Nf3 Nf6 3 d4 cxd4 4 Nxd4 e6.} d5 {[%emt 0:05:06]} 10. cxd5 {[%emt 0:14:44]} Nxd4 {[%emt 0:01:20]} 11. exd4 {[%emt 0:00:05] The position is equal.} exd5 {[%emt 0:15:02] [#]} 12. Qb3 $146 {[%emt 0:02:34]} ({Predecessor:} 12. O-O Qb6 13. Bg5 Be6 14. Na4 Qd6 15. Nc5 b6 16. Nxe6 fxe6 17. b4 a5 18. Bd2 {0-1 (66) Koutsourakis,E (1265)-Gratseas,S (2094) Heraklion 2014}) 12... Be6 {[%emt 0:10:54]} 13. Bf4 {[%emt 0:03:28]} (13. Qxb7 Rb8 14. Qxa7 Rxb2 $11) 13... Bd6 {[%emt 0:08:16]} 14. Bg5 {[%emt 0:04:34][%cal Bf4g5,Bg5h4,Bh4g3][%mdl 32]} h6 {[%emt 0:01:18]} 15. Bh4 {[%emt 0:05:52]} g5 {[%emt 0:03:32]} 16. Bg3 {[%emt 0:00:05]} Ne4 {[%emt 0:00:28]} 17. Nxe4 {[%emt 0:10:25]} (17. Bd3 $11) 17... dxe4 $15 {[%emt 0:00:15]} 18. Qxb7 {[%emt 0:02:44]} (18. Qe3 $15) 18... Rb8 $1 $36 {[%emt 0:05:28][%mdl 2048] Keeping White busy.} 19. Qxe4 {[%emt 0:11:54] [#] Bd3 is the strong threat.} Bd5 $1 {[%emt 0:05:15]} 20. Qc2 {[%emt 0:09:28]} (20. Qxd5 $2 Bb4+ $1 {[%mdl 512]} 21. axb4 Qxd5 $19) 20... Bxg2 {[%emt 0:03:52]} 21. Rg1 {[%emt 0:01:19]} Qa5+ {[%emt 0:04:34]} 22. Qd2 {[%emt 0:08:14]} (22. Qc3 $2 Bb4 $1 {[%mdl 512]} 23. axb4 Qxa1+ 24. Bd1 Rbc8 $1 $19) 22... Qxd2+ {[%emt 0:04:10][%mdl 64] Remove Defender} 23. Kxd2 {[%emt 0:00:04]} Rxb2+ {[%emt 0:00:25]} 24. Kc3 {[%emt 0:00:06]} Rxe2 {[%emt 0:00:51] Black is much more active.} 25. Rxg2 {[%emt 0:00:03]} Bxg3 {[%emt 0:03:04]} 26. hxg3 {[%emt 0:00:05][%mdl 4096] Endgame KRR-KRR} Rc8+ {[%emt 0:00:54]} 27. Kd3 {[%emt 0:00:10]} Rb2 {[%emt 0:01:00]} 28. a4 {[%emt 0:09:11]} Kg7 {[%emt 0:04:33]} 29. Ra3 {[%emt 0:00:48] [#]} Rc1 $1 {[%emt 0:01:28]} 30. Ke4 {[%emt 0:02:20]} Rd1 {[%emt 0:01:54]} 31. a5 {[%emt 0:01:12]} Rb4 {[%emt 0:03:44]} (31... h5 $17 32. Rc3 Kg6) 32. Rd3 $15 {[%emt 0:00:05]} f5+ {[%emt 0:03:28]} 33. Ke3 {[%emt 0:00:03]} Re1+ {[%emt 0:00:08]} 34. Kd2 $1 {[%emt 0:00:04]} Ra1 {[%emt 0:00:21]} 35. d5 {[%emt 0:00:54]} Rxa5 {[%emt 0:02:41]} (35... Rc4 $17 36. d6 Rcc1) 36. d6 {[%emt 0:00:47]} Rb2+ {[%emt 0:05:58]} 37. Ke3 $2 {[%emt 0:01:09]} (37. Kc1 $1 $15 Rb8 38. Kd2) 37... Ra4 $2 {[%emt 0:00:53]} (37... Re5+ $19 38. Kd4 Rbb5) 38. g4 {[%emt 0:01:24]} (38. d7 $2 {gets mated.} Re4+ 39. Kf3 g4#) (38. Rg1 $11 Re4+ 39. Kf3 g4+ 40. Kg2) 38... Re4+ $17 {[%emt 0:01:06]} (38... fxg4 $2 39. d7 Rb8 40. d8=Q Rxd8 41. Rxd8 $18) 39. Kf3 {[%emt 0:00:03]} Rf4+ {[%emt 0:00:59]} 40. Ke3 {[%emt 0:01:15]} Re4+ {[%emt 0:00:19]} ({Better is} 40... fxg4 $17 {Strongly threatening ...Rf3+.} 41. Rg3 (41. d7 $2 Rf3+ 42. Kd4 Rb4+ 43. Kc3 Rb3+ 44. Kxb3 Rxd3+ 45. Kc2 Rxd7 $19) 41... Rb8) 41. Kf3 $11 {[%emt 0:30:03]} Rf4+ {[%emt 0:00:00]} ({Black should try} 41... Rb8 $11) 42. Ke3 $17 {[%emt 0:00:00]} fxg4 {[%emt 0:00:00] Hoping for ...Rf3+.} 43. Rd5 $2 {[%emt 0:00:00]} ({Don't go for} 43. d7 $2 Rf3+ 44. Kd4 Rb4+ 45. Kc3 {[#]} Rb3+ $3 {[%mdl 512]} 46. Kxb3 Rxd3+ 47. Kc4 Rxd7 48. Rxg4 Kg6 $19) (43. Rg3 $17 Rb8 44. f3) 43... Kf6 {[%emt 0:00:00] aiming for ...Ke6.} 44. Rh2 $2 {[%emt 0:00:00]} ({But not} 44. d7 Rf3+ 45. Kd4 Rd2+ 46. Kc4 Rxd5 47. Kxd5 Ke7 48. Rxg4 Kxd7 $19) (44. Rg3 Ra4 45. Kd3 (45. d7 $2 Ra3+ 46. Rd3 Rxd3+ 47. Kxd3 Ke7 $19)) 44... Ke6 {[%emt 0:00:00]} 45. Rd1 {[%emt 0:00:00]} Ke5 {[%emt 0:00:00][%csl Gg4][%cal Rf4f3]} 46. d7 {[%emt 0:00:00]} Rf3# {Weighted Error Value: White=0.76/Black=0.22 (precise)} 0-1

[Event "German Bundesliga 2021-22"]
[Site "Germany"]
[Date "2022.05.01"]
[Round "6.4"]
[White "Neef, Maximilian"]
[Black "Lokander, Martin"]
[Result "0-1"]
[ECO "A37"]
[WhiteElo "2504"]
[BlackElo "2473"]
[Annotator "TA"]
[PlyCount "80"]
[EventDate "2022.03.05"]
[EventType "team-tourn"]
[EventCountry "GER"]
[SourceTitle "playchess.com"]
[Source "ChessBase"]
[SourceQuality "1"]
[TimeControl "40/5400+30:1800+30"]

{[%evp 12,80,0,0,0,0,0,0,-16,-18,7,5,0,-8,5,23,45,35,31,42,79,64,122,111,118,141,136,144,145,140,131,132,135,131,150,127,136,0,0,0,0,0,0,0,0,-27,-18,-29,-18,-215,-211,-314,-307,-725,-701,-29967,-29968,-29967,-927,-879,-851,-29969,-29972,-12462,-6190,-6190,-6072,-29987,-29988,-29987,-796]} 1. Nf3 {[%emt 0:00:00]} c5 {[%emt 0:00:00]} 2. g3 {[%emt 0:00:00]} g6 {[%emt 0:00:00]} 3. Bg2 {[%emt 0:00:00]} Bg7 {[%emt 0:00:00]} 4. c4 {[%emt 0:00:00]} Nc6 {[%emt 0:00:00]} 5. Nc3 {[%emt 0:00:00]} e6 {[%emt 0:00:00]} 6. d3 {[%emt 0:00:00]} Nge7 {[%emt 0:00:00]} 7. h4 {[%emt 0:00:00]} h6 {[%emt 0:00:00] A37: Symmetrical English vs ...g6: 4 Bg2 Bg7 5 Nf3.} 8. Bd2 {[%emt 0:00:00]} d5 {[%emt 0:00:00]} 9. Rb1 {[%emt 0:00:00]} b6 {[%emt 0:00:00] The position is equal.} 10. a3 {[%emt 0:00:00][%cal Ba2a3,Ba3b4,Bb4c5][%mdl 32]} Bb7 {[%emt 0:06:47]} 11. O-O {[%emt 0:01:37]} O-O {[%emt 0:07:27]} 12. Qc1 {[%emt 0:03:27]} Kh7 {[%emt 0:09:11]} 13. b4 {[%emt 0:02:29]} cxb4 {[%emt 0:02:35]} 14. axb4 {[%emt 0:01:51]} dxc4 {[%emt 0:05:30]} 15. dxc4 {[%emt 0:00:06]} Nf5 {[%emt 0:01:49]} 16. c5 {[%emt 0:23:29]} bxc5 {[%emt 0:06:59]} (16... Ne5 $14) 17. bxc5 $16 {[%emt 0:00:07] [#]} Rb8 $146 {[%emt 0:16:40]} ({Predecessor:} 17... Ba6 18. Qa3 Qc8 19. Rfc1 Rd8 20. Ne4 Rd5 21. Bc3 Ncd4 22. Nxd4 Nxd4 23. Bxd4 Bxd4 24. e3 Bg7 25. Nd6 Qc6 26. Bxd5 exd5 27. Rb4 Rf8 28. Qa4 {1-0 (28) Ipatov,A (2581)-Cmilyte,V (2525) Konya 2012}) 18. Bf4 {[%emt 0:07:31]} e5 {[%emt 0:00:07] [#]} 19. Nxe5 {[%emt 0:00:45][%mdl 512]} Bxe5 {[%emt 0:00:31]} 20. Bxe5 {[%emt 0:00:18]} Nxe5 {[%emt 0:00:07]} 21. Bxb7 {[%emt 0:00:23]} ({But not} 21. Rxb7 Rxb7 22. Bxb7 Qc7 $16) 21... Qd4 {[%emt 0:04:57] [#]} 22. Nb5 $1 {[%emt 0:27:02][%csl LRa7,LRd4]} Qg4 {[%emt 0:11:41]} 23. Bg2 {[%emt 0:02:34] aiming for Qc3.} ({Reject} 23. Nxa7 Nxg3 24. fxg3 Rxb7 25. Rxb7 Qxg3+ 26. Kh1 Qh3+ 27. Kg1 Qg3+ 28. Kh1 Qxh4+ 29. Kg1 Qg3+ 30. Kh1 Qh4+ 31. Kg1 Qg3+ 32. Kh1 Qh4+ $11) 23... Qxe2 {[%emt 0:06:30] [#]} 24. Nxa7 {[%emt 0:11:26]} ({Better is} 24. Qf4 $1 $16 {Black must now prevent Nc3.} Rxb5 25. Rxb5 Qxb5 26. Qxe5) 24... Rxb1 $11 {[%emt 0:10:04]} 25. Qxb1 {[%emt 0:00:08]} Nf3+ {[%emt 0:00:06]} 26. Bxf3 {[%emt 0:02:40]} Qxf3 {[%emt 0:00:05]} 27. Qd1 {[%emt 0:01:18]} Qa3 {[%emt 0:01:44][%csl LRa7,LRc5]} (27... Qb7 $5 28. Qa4 Ra8 $11) 28. Qa1 {[%emt 0:04:31]} Qxc5 {[%emt 0:00:45] Threatens to win with ...Nxg3.} 29. Rc1 {[%emt 0:00:04]} Qd5 {[%emt 0:02:48] ...Nd4 is the strong threat.} 30. Nc6 {[%emt 0:05:55] [#] Inhibits Nd4.} (30. Qa6 $1 $11) 30... Rc8 $1 $40 {[%emt 0:01:56][%mdl 128] White is in trouble.} 31. Nb4 {[%emt 0:05:01]} (31. Qa7 $142 Rxc6 32. Rxc6 Qxc6 33. Qxf7+ Ng7 34. Qe7) 31... Qd4 {[%emt 0:00:58] Hoping for ...Rxc1+.} 32. Rb1 {[%emt 0:02:23]} (32. Na2 Rxc1+ 33. Qxc1 Nxg3 34. Qc2) 32... Rc3 {[%emt 0:00:52]} 33. Kg2 {[%emt 0:01:08]} Qe4+ {[%emt 0:04:00]} 34. Kh2 {[%emt 0:00:35] [#]} Rf3 {[%emt 0:01:10]} (34... Nxh4 $142 $1 {[%mdl 512]} 35. gxh4 Rf3 36. Qa2 Qg4 37. Rb3 Qxh4+ 38. Kg1 Qg4+ 39. Kf1 Qh3+ 40. Ke2 Rxb3 41. Nc2 Qd3+ 42. Ke1 h5 43. Ne3 h4 44. Qxb3 Qxb3 45. Kd2 h3 46. Nf1 Qb4+ 47. Kd1 Qb1+ 48. Ke2 Qb5+ 49. Ke1 h2 50. Nxh2 Qe5+ 51. Kd2 Qxh2 52. Ke3 g5 53. Ke2 g4 54. Ke3 Qg2 55. Kf4 Qxf2+ 56. Ke5 g3 57. Kd5 g2 58. Kc4 g1=Q 59. Kc3 Qc5+ 60. Kb3 Qb1+ 61. Ka4 Qd1#) 35. Qa2 {[%emt 0:00:32] [#]} Nxh4 $1 {[%emt 0:00:39][%cal Of3f4][%mdl 512] ( -> ...Rf4!)} 36. gxh4 {[%emt 0:00:28]} (36. Qc2 Qxc2) 36... Qg4 {[%emt 0:00:10][%csl Gg4][%cal Rf3h3]} 37. Rb3 {[%emt 0:00:37]} Qh3+ {[%emt 0:00:04]} 38. Kg1 {[%emt 0:00:07]} Rxb3 {[%emt 0:00:04]} 39. Nd5 {[%emt 0:00:52]} Qg4+ {[%emt 0:00:12]} 40. Kf1 {[%emt 0:00:06]} Qd1+ {[%emt 0:00:05] Black used his chance.  Weighted Error Value: White=0.88/Black=0.32} 0-1

[Event "German Bundesliga 2021-22"]
[Site "Germany"]
[Date "2022.05.01"]
[Round "6.5"]
[White "L'Ami, Erwin"]
[Black "Svane, Frederik"]
[Result "1-0"]
[ECO "E10"]
[WhiteElo "2622"]
[BlackElo "2496"]
[Annotator "TA"]
[PlyCount "139"]
[EventDate "2022.03.05"]
[EventType "team-tourn"]
[EventCountry "GER"]
[SourceTitle "playchess.com"]
[Source "ChessBase"]
[SourceQuality "1"]
[TimeControl "40/5400+30:1800+30"]

{[%evp 20,139,11,0,0,6,9,0,17,0,16,13,5,10,13,5,21,23,45,42,51,44,54,44,50,47,29,32,52,42,58,54,54,34,41,41,70,41,47,72,97,96,98,97,142,136,137,137,137,100,121,114,117,112,193,169,214,214,239,234,271,263,263,255,297,300,342,313,373,387,508,480,437,390,418,401,517,418,425,342,368,358,342,360,445,430,419,0,406,346,345,345,646,625,645,629,642,643,519,501,617,631,638,599,817,792,832,813,775,778,766,735,999,970,991,987,1029,1028,969,1023,920,867]} 1. d4 {[%emt 0:00:00]} Nf6 {[%emt 0:00:00]} 2. c4 {[%emt 0:00:00]} e6 {[%emt 0:00:00]} 3. Nf3 {[%emt 0:00:00]} d5 {[%emt 0:00:00]} 4. g3 {[%emt 0:00:00]} Bb4+ {[%emt 0:00:00]} 5. Bd2 {[%emt 0:00:00]} Be7 {[%emt 0:00:00]} 6. Bg2 {[%emt 0:00:00]} O-O {[%emt 0:00:00]} 7. O-O {[%emt 0:00:00]} c6 {[%emt 0:00:00]} 8. Qc2 {[%emt 0:00:00]} b6 {[%emt 0:00:00]} 9. Bf4 {[%emt 0:00:00]} Bb7 {[%emt 0:00:00]} 10. Rd1 {[%emt 0:00:00]} Nbd7 {[%emt 0:00:00]} 11. Ne5 {[%emt 0:00:00] 11.Ne5 scores better than 11.Nc3.} Nh5 {[%emt 0:00:00] E08: Closed Catalan: Main Line: 7 Qc2.} 12. Bd2 {[%emt 0:00:00]} Nhf6 {[%emt 0:00:00]} 13. cxd5 {[%emt 0:00:00]} cxd5 {[%emt 0:00:00] The position is equal.} 14. Nc6 {[%emt 0:00:00]} Qe8 {[%emt 0:00:00]} (14... Bxc6 $5 15. Qxc6 Rc8 $11) 15. Nxe7+ {[%emt 0:00:00]} Qxe7 {[%emt 0:00:00]} 16. Qc7 {[%emt 0:00:00]} Rab8 {[%emt 0:14:57]} 17. Qc3 {[%emt 0:00:00] [#]} Ne4 $146 {[%emt 0:23:08]} ({Predecessor:} 17... Rfc8 18. Qa3 Qd8 19. Nc3 a6 20. Bf4 Ra8 21. e3 b5 22. Bd6 Ne4 23. Rdc1 Nb6 24. Nxe4 dxe4 {½-½ (62) Relyea,A (2289)-Barclay,A (2422) ICCF email 2021}) 18. Qb4 {[%emt 0:01:51]} Qxb4 {[%emt 0:03:20]} (18... Qd8 {with more complications.} 19. Bf4 a5 20. Qa3 Rc8) 19. Bxb4 {[%emt 0:00:11][%cal Bd2b4,Bb4a3,Ba3d6,Bd6f4][%mdl 32]} Rfc8 {[%emt 0:00:13]} 20. f3 {[%emt 0:03:59]} a5 {[%emt 0:01:29]} 21. Ba3 {[%emt 0:02:48]} Nef6 {[%emt 0:02:45]} 22. Bd6 {[%emt 0:01:54]} Ra8 {[%emt 0:00:05]} 23. Nc3 {[%emt 0:00:11]} Rc6 {[%emt 0:03:32]} 24. Bf4 {[%emt 0:00:40]} Ba6 {[%emt 0:02:21]} 25. e4 {[%emt 0:10:42][%cal Be2e4,Be4e5][%mdl 32]} Bc4 {[%emt 0:26:54]} 26. a4 {[%emt 0:06:55]} Nb8 {[%emt 0:03:52]} 27. Ra3 {[%emt 0:11:46]} Rc8 {[%emt 0:00:03]} 28. Nb5 {[%emt 0:03:02]} Bxb5 {[%emt 0:06:07]} 29. axb5 {[%emt 0:00:22]} Nbd7 {[%emt 0:00:04]} 30. e5 {[%emt 0:06:26]} Ne8 {[%emt 0:00:30]} 31. Bf1 {[%emt 0:00:10]} Ra7 {[%emt 0:07:57]} 32. b4 {[%emt 0:04:55]} a4 {[%emt 0:00:52]} 33. Rda1 {[%emt 0:00:17]} Rca8 {[%emt 0:01:47]} 34. Be3 {[%emt 0:00:30]} Kf8 {[%emt 0:02:24]} 35. Bd3 {[%emt 0:00:34]} Ke7 {[%emt 0:03:51]} 36. Kf2 {[%emt 0:00:31] White is more active.} (36. Bxh7 g6 37. Bg5+ f6 $17) 36... f5 {[%emt 0:00:17]} (36... f6 $16) 37. g4 {[%emt 0:04:10]} g6 {[%emt 0:00:07]} 38. Ke2 {[%emt 0:00:33]} Kf7 {[%emt 0:01:22]} 39. Kd2 {[%emt 0:00:15]} Ke7 {[%emt 0:00:55]} 40. Kc2 {[%emt 0:01:00]} Rc7+ {[%emt 0:00:18]} 41. Kb2 {[%emt 0:30:23]} Rca7 {[%emt 0:00:00]} 42. Rc1 {[%emt 0:00:00]} Nb8 {[%emt 0:00:00]} 43. Rac3 {[%emt 0:00:00][%cal Ba3c3,Bc3c8,Bc8c6][%mdl 32] Inhibits Rc7.} a3+ {[%emt 0:00:00]} 44. Ka2 {[%emt 0:00:00]} Ra4 {[%emt 0:00:23]} 45. Bg5+ {[%emt 0:00:00]} Kf7 {[%emt 0:00:06]} 46. Bd2 {[%emt 0:00:00]} Ke7 {[%emt 0:04:18]} 47. Rc8 {[%emt 0:00:00] [#] Hoping for Bg5+.} R4a7 {[%emt 0:02:44]} 48. Be2 {[%emt 0:00:00]} Nd7 {[%emt 0:01:15]} 49. R8c6 {[%emt 0:00:00]} Rb7 {[%emt 0:00:11]} 50. h4 {[%emt 0:00:00][%cal Bh2h4,Bh4h5][%mdl 32]} Nf8 {[%emt 0:04:21]} 51. h5 {[%emt 0:00:00]} Raa7 {[%emt 0:03:16]} 52. Bh6 {[%emt 0:00:00]} Ra4 {[%emt 0:03:29]} 53. Bd2 {[%emt 0:00:00]} Raa7 $1 {[%emt 0:00:06]} 54. Rh1 {[%emt 0:00:00] [#] And now hxg6 would win.} Kf7 {[%emt 0:04:05]} 55. Bd3 {[%emt 0:00:00]} Ng7 $2 {[%emt 0:01:12]} (55... Ra8 56. Bh6 Ng7 57. gxf5 Nxh5 58. Bxf8 Rxf8 59. Rxe6 Kg8) 56. hxg6+ $18 {[%emt 0:01:48] White is clearly winning.} hxg6 {[%emt 0:00:14]} 57. Rh8 {[%emt 0:00:16] Black must now prevent Rc8.} Ra8 {[%emt 0:00:36] Against Rc8} 58. Bh6 {[%emt 0:01:25]} Rab8 {[%emt 0:01:31]} 59. Kxa3 {[%emt 0:00:53][%cal Ba2a3,Ba3b2,Bb2c3,Bc3d2,Bd2e2,Be2e3,Be3f4,Bf4g5][%mdl 32]} Ra8+ {[%emt 0:00:59]} 60. Kb2 {[%emt 0:00:40]} Rab8 {[%emt 0:00:54]} 61. Kc3 {[%emt 0:01:04]} Ra8 {[%emt 0:00:13]} 62. Kd2 {[%emt 0:00:36]} Ra2+ {[%emt 0:00:18]} 63. Bc2 {[%emt 0:00:41] Intending Rc8 and mate. This bishop pair is nice.} Ra8 {[%emt 0:00:04] Inhibits Rc8.} 64. Ke2 {[%emt 0:00:32]} Rab8 {[%emt 0:00:21]} 65. Ke3 {[%emt 0:00:20]} Ra8 {[%emt 0:00:43]} 66. Kf4 {[%emt 0:01:23]} Rab8 {[%emt 0:00:04]} 67. Kg5 {[%emt 0:01:06]} Ra8 {[%emt 0:00:19]} 68. Bd3 {[%emt 0:00:18]} Rab8 {[%emt 0:00:29]} 69. gxf5 {[%emt 0:03:59]} gxf5 {[%emt 0:00:17]} 70. f4 {[%emt 0:01:12] Weighted Error Value: White=0.14 (very precise) /Black=0.28 (precise)} 1-0